[Event "Superbet Blitz Poland 2023"]
[Site "Warsaw"]
[Date "2023.05.25"]
[Round "18"]
[White "Shevchenko, Kirill"]
[Black "Giri, Anish"]
[Result "1/2-1/2"]
[ECO "A28"]
[WhiteElo "2684"]
[BlackElo "2768"]
[Annotator "TA"]
[PlyCount "143"]
[EventDate "2023.05.24"]
[EventType "tourn"]
[EventCountry "POL"]
[SourceTitle "playchess.com"]
[Source "ChessBase"]
[SourceQuality "1"]
[TimeControl "300+2"]

{[%evp 13,143,0,9,0,5,10,14,14,19,15,23,17,43,16,29,32,65,60,70,77,72,83,83,84,76,75,118,18,31,25,56,20,27,16,18,18,24,12,33,47,32,29,40,30,47,25,60,25,31,29,45,17,25,18,25,25,38,16,31,0,16,0,0,0,0,0,5,0,0,0,0,0,17,2,10,0,0,0,0,0,0,0,0,0,0,0,0,0,0,0,0,0,0,0,0,0,0,0,8,0,0,0,8,8,8,8,8,8,222,10,311,282,870,497,495,487,448,395,408,270,814,0,0,0,0,0,0,0,0,0,0,0]} 1. c4 {[%emt 0:00:01]} Nf6 {[%emt 0:00:03]} 2. Nc3 {[%emt 0:00:01]} e5 {[%emt 0:00:02]} 3. Nf3 {[%emt 0:00:01]} Nc6 {[%emt 0:00:01]} 4. d3 {[%emt 0:00:01]} Bb4 {[%emt 0:00:04]} 5. Bd2 {[%emt 0:00:01]} O-O {[%emt 0:00:02]} 6. e3 {[%emt 0:00:02]} d5 {[%emt 0:00:01]} 7. cxd5 {[%emt 0:00:02]} Nxd5 {[%emt 0:00:01]} 8. Be2 {[%emt 0:00:01] A28: English Opening: Four Knights Variation.} Nxc3 {[%emt 0:00:02]} 9. Bxc3 {[%emt 0:00:01]} Bxc3+ {[%emt 0:00:02]} 10. bxc3 {[%emt 0:00:01] [#]} Qd6 $146 {[%emt 0:00:04]} ({Predecessor:} 10... Qe7 11. d4 Bd7 12. O-O Rad8 13. Qc2 Rfe8 14. Rab1 b6 15. Bb5 e4 16. Nd2 Na5 17. Bxd7 Rxd7 {½-½ Timofeev,A (2655)-Najer,E (2665) RUS-chT 17th 2010 (1)}) 11. O-O {[%emt 0:00:06]} b6 {[%emt 0:00:01]} 12. d4 {[%emt 0:00:25]} Bf5 {[%emt 0:00:37]} 13. Qa4 {[%emt 0:00:05]} exd4 {[%emt 0:00:07]} 14. cxd4 {[%emt 0:00:03]} Nb4 {[%emt 0:00:03]} 15. Rac1 {[%emt 0:00:29]} Bd7 {[%emt 0:00:02]} 16. Qb3 {[%emt 0:00:08]} Be6 {[%emt 0:00:03]} 17. Bc4 {[%emt 0:00:01]} Bxc4 {[%emt 0:00:02]} 18. Qxc4 {[%emt 0:00:06]} Rac8 {[%emt 0:00:08]} 19. Rfd1 {[%emt 0:00:08]} c5 {[%emt 0:00:19]} 20. Ne5 {[%emt 0:00:41]} (20. d5 $16) 20... Nc6 {[%emt 0:00:13]} 21. Nxc6 {[%emt 0:00:37]} (21. dxc5 $2 Qxe5 22. cxb6 axb6 $19) 21... Qxc6 {[%emt 0:00:01]} 22. Qa6 {[%emt 0:00:15]} Qc7 {[%emt 0:00:29]} 23. Rc4 {[%emt 0:00:10]} Rfd8 {[%emt 0:00:05]} 24. Rdc1 {[%emt 0:00:02]} Qe7 {[%emt 0:00:10]} 25. h3 {[%emt 0:00:08]} Rc7 {[%emt 0:00:07]} 26. dxc5 {[%emt 0:00:02]} bxc5 {[%emt 0:00:09]} 27. Qa5 {[%emt 0:00:14][%cal Rc4c5]} Rdc8 {[%emt 0:00:01]} 28. Qc3 {[%emt 0:00:05]} g6 {[%emt 0:00:06]} 29. a4 {[%emt 0:00:04]} Qe6 {[%emt 0:00:05]} 30. Qa5 {[%emt 0:00:03][%cal Rc4c5]} Qb6 {[%emt 0:00:04]} 31. Qd2 {[%emt 0:00:02]} Qe6 {[%emt 0:00:06]} 32. h4 {[%emt 0:00:01]} h5 {[%emt 0:00:01]} 33. Qc3 {[%emt 0:00:08]} Qe7 {[%emt 0:00:09]} 34. g3 {[%emt 0:00:01]} Rc6 {[%emt 0:00:03]} 35. Qc2 {[%emt 0:00:02]} Qe5 {[%emt 0:00:04]} 36. Rd1 {[%emt 0:00:02]} Rd6 {[%emt 0:00:03]} 37. Rb1 {[%emt 0:00:08]} Rb6 {[%emt 0:00:03]} 38. Rb5 {[%emt 0:00:04]} Rxb5 {[%emt 0:00:15]} 39. axb5 $11 {[%emt 0:00:00][%mdl 4096] Endgame KQR-KQR} Qc7 {[%emt 0:00:03]} 40. Qa4 {[%emt 0:00:20]} (40. g4 {with more complications.} hxg4 41. h5 g3 42. hxg6 gxf2+ 43. Kg2) 40... Qd7 {[%emt 0:00:15]} 41. Rc1 {[%emt 0:00:08]} Qc7 {[%emt 0:00:10]} 42. Qc4 {[%emt 0:00:01]} Qb7 {[%emt 0:00:08]} 43. Rd1 {[%emt 0:00:05]} Qe7 {[%emt 0:00:05] Inhibits Rd6.} 44. Rd5 {[%emt 0:00:03]} Qe6 {[%emt 0:00:04]} 45. e4 {[%emt 0:00:01]} Qe7 {[%emt 0:00:10]} 46. Rg5 {[%emt 0:00:19]} Kh7 {[%emt 0:00:03]} 47. Rd5 {[%emt 0:00:03]} Kg8 {[%emt 0:00:03]} 48. Kh2 {[%emt 0:00:01]} Qe6 {[%emt 0:00:12]} 49. f3 {[%emt 0:00:03]} Qf6 {[%emt 0:00:06]} 50. f4 {[%emt 0:00:14][%cal Bf3f4,Bf4f5,Bf5g6,Bg6f7][%mdl 32]} Qb2+ {[%emt 0:00:02]} 51. Kh3 {[%emt 0:00:01]} Qb1 {[%emt 0:00:16][%cal Rb1h1] [#]} 52. Kg2 {[%emt 0:00:01] Against Qh1+} Qb2+ {[%emt 0:00:01]} 53. Kf3 {[%emt 0:00:01]} Qa1 {[%emt 0:00:15]} 54. f5 {[%emt 0:00:03] fxg6 would be deadly.} (54. Rxc5 $2 Qa3+ $19) 54... Qh1+ $1 {[%emt 0:00:11]} 55. Kf4 {[%emt 0:00:01] And now fxg6 would win.} Qh3 {[%emt 0:00:01]} 56. Kf3 {[%emt 0:00:22] Active counter play!} (56. fxg6 {seems wilder.} Qg4+ 57. Ke3 Qxg3+ 58. Kd2) 56... Qh1+ {[%emt 0:00:11]} 57. Kf4 {[%emt 0:00:01] fxg6 is the strong threat.} Qh3 {[%emt 0:00:03]} 58. fxg6 $40 {[%emt 0:00:13][%cal Od5d8][%mdl 128] White threatens Rd8+! and mate. White has some attack.} Qg4+ {[%emt 0:00:06][%mdl 64] Deflection, Double Attack} 59. Ke3 {[%emt 0:00:01][%cal Od5d8] Rd8+! would kill now.} Qxg3+ {[%emt 0:00:04]} (59... Qxg6 $2 60. Rg5 $18 (60. Rxc5 Qxg3+ 61. Ke2 Qg2+ 62. Ke1 Qg1+ 63. Qf1 Qxc5 $19) (60. Rxc5 $2 Qxg3+ 61. Ke2 Qg2+ 62. Kd3 Qf3+ 63. Kc2 Qf2+ 64. Kb3 Rxc5 $19)) 60. Kd2 Qf2+ {[%emt 0:00:12] [#]} (60... fxg6 61. Rd3+ Kg7 62. Rxg3 Re8 63. Rd3 Re7 64. Rd8 Kf6 65. Qxc5) (60... Qxh4 $11 {and Black is okay.} 61. Kc1 (61. Rxc5 $2 Qf2+ 62. Kd3 Rxc5 $19) (61. gxf7+ Kf8 $14) 61... Rc7) 61. Kd1 $2 {[%emt 0:00:03]} (61. Kc1 $1 $18 {Black must now prevent Rf5.} Kf8 62. Rxh5) 61... Qf3+ $2 {[%emt 0:00:04][%mdl 8192]} (61... Qg1+ $2 62. Kc2 Qf2+ 63. Rd2 $18) (61... Qxh4 $11 {and Black stays safe.} 62. Kc1 (62. Rxc5 Rd8+ 63. Kc2 Qf2+ 64. Kb3 Qg3+ 65. Ka4 Qxg6 $15) (62. gxf7+ Kf8 $14) 62... Rc7) 62. Kc2 {[%emt 0:00:01]} Kg7 $2 {[%emt 0:00:16]} (62... fxg6 63. Rf5+ Kh8 64. Rxf3 Rc7 65. Rf7 Rxf7 66. Qxf7 c4 67. Kc3 g5 68. hxg5 a6 69. g6 axb5 70. Qh7#) (62... Qg2+ $2 63. Kb3 Qg3+ 64. Ka4 $18) (62... Kf8 63. Rxh5 (63. Rxc5 $2 Qf2+ 64. Kb3 Rxc5 $19) 63... Rc7) 63. gxf7 {[%emt 0:00:02]} (63. Rxc5 $2 Qf2+ 64. Kb3 Rxc5 $19) 63... Kf8 {[%emt 0:00:02]} 64. Rf5 {[%emt 0:00:14]} (64. Rxc5 $2 Qf2+ 65. Kb3 Rxc5 $19) 64... Qg2+ {[%emt 0:00:04]} 65. Kb3 {[%emt 0:00:00]} Qg3+ {[%emt 0:00:01]} 66. Ka4 {[%emt 0:00:01]} Qe1 $2 {[%emt 0:00:01]} (66... Qg7 67. Kb3 (67. Rxc5 Qa1+ 68. Kb4 Qb1+ 69. Kc3 Qe1+ 70. Kb3 Qb1+ 71. Ka4 Qa1+ 72. Kb4 Qb1+ 73. Kc3 Qe1+ 74. Kb3 Qb1+ 75. Ka3 Qa1+ 76. Kb4 $11) 67... Qg3+ 68. Kb2 Qh2+ 69. Qc2 Qd6 70. Rxh5 (70. Qg2 Qd4+ 71. Kb3 Qb4+ 72. Kc2 Qc4+ 73. Kb2 Qd4+ 74. Kc2 Qc4+ 75. Kb2 Qd4+ $11) 70... Qd4+ 71. Ka2 Rb8) 67. Rf3 $2 {[%emt 0:00:17]} ({Worse is} 67. Rxc5 Qa1+ 68. Kb4 Qb2+ 69. Ka4 Qa1+ 70. Kb4 Qb2+ 71. Ka4 Qa1+ $11) (67. Rf1 $18 Qb4+ 68. Qxb4 cxb4 69. Kxb4) 67... Qa1+ {[%emt 0:00:02] The position is equal.} 68. Ra3 {[%emt 0:00:01] Chess con chili.} Qd1+ {[%emt 0:00:01]} 69. Rb3 {[%emt 0:00:04]} Qa1+ {[%emt 0:00:03]} 70. Ra3 {[%emt 0:00:00]} Qd1+ {[%emt 0:00:00]} 71. Rb3 {[%emt 0:00:04]} Qa1+ {[%emt 0:00:02]} 72. Ra3 {[%emt 0:00:00] Weighted Error Value: White=0.09 (flawless) /Black=0.13 (very precise)} 1/2-1/2

[Event "Superbet Blitz Poland 2023"]
[Site "Warsaw"]
[Date "2023.05.25"]
[Round "18"]
[White "Wojtaszek, Radoslaw"]
[Black "Vachier-Lagrave, Maxime"]
[Result "0-1"]
[ECO "A21"]
[WhiteElo "2670"]
[BlackElo "2742"]
[Annotator "TA"]
[PlyCount "94"]
[EventDate "2023.05.24"]
[EventType "tourn"]
[EventCountry "POL"]
[SourceTitle "playchess.com"]
[Source "ChessBase"]
[SourceQuality "1"]
[TimeControl "300+2"]

{[%evp 9,94,-12,-7,-7,6,0,0,0,20,0,16,12,0,0,14,0,4,-15,-20,-14,0,-26,-12,-20,0,-15,0,-6,-7,-18,-14,-10,-5,-23,-12,-46,0,-58,0,0,60,7,8,16,18,4,16,0,0,-28,-22,-51,-44,-81,-82,-87,-87,-93,-87,-87,-87,-89,-87,-209,-209,-178,-85,-85,-35,-387,-363,-413,-424,-424,-415,-426,-425,-381,-366,-590,-593,-551,-564,-668,-656,-529,-477]} 1. c4 {[%emt 0:00:02]} e5 {[%emt 0:00:03]} 2. Nc3 {[%emt 0:00:02]} Bb4 {[%emt 0:00:01]} 3. Qc2 {[%emt 0:00:03]} Nf6 {[%emt 0:00:05]} 4. Nf3 {[%emt 0:00:07]} Qe7 {[%emt 0:00:02]} 5. g3 {[%emt 0:00:22]} O-O {[%emt 0:00:16]} 6. Bg2 {[%emt 0:00:01] A21: English Opening: 1...e5 2 Nc3.} c6 {[%emt 0:00:01]} 7. a3 {[%emt 0:00:09]} Bxc3 {[%emt 0:00:12]} 8. Qxc3 {[%emt 0:00:02] The position is equal.} Re8 {[%emt 0:00:13]} 9. O-O {[%emt 0:00:35] [#]} a5 $146 {[%emt 0:00:19]} ({Predecessor:} 9... d5 10. d3 e4 11. dxe4 Nxe4 12. Qc2 dxc4 13. Qxc4 Nd7 14. b4 Qf6 15. Nd4 Nb6 {1-0 Moradiabadi,E (2539)-Dhulipalla,B (2414) Sitges Sunway op 6th 2019 (10)}) 10. d3 {[%emt 0:00:11]} a4 {[%emt 0:00:04]} 11. Bg5 {[%emt 0:00:06]} d6 {[%emt 0:00:01]} 12. Nd2 {[%emt 0:00:09]} Nbd7 {[%emt 0:00:08]} 13. Rae1 {[%emt 0:00:27]} h6 {[%emt 0:00:02]} 14. Bxf6 {[%emt 0:00:01]} Nxf6 {[%emt 0:00:02]} 15. Qb4 {[%emt 0:00:16]} Qc7 {[%emt 0:00:09]} 16. Rc1 {[%emt 0:00:01]} Qa5 {[%emt 0:00:07]} 17. Nb1 {[%emt 0:00:18]} Rd8 {[%emt 0:00:15]} 18. Nc3 {[%emt 0:00:34]} Qa7 {[%emt 0:00:02]} 19. Ne4 {[%emt 0:00:08]} Nxe4 {[%emt 0:00:02]} 20. Bxe4 {[%emt 0:00:01]} Be6 {[%emt 0:00:13]} 21. Bg2 {[%emt 0:00:05]} Rab8 {[%emt 0:00:07]} (21... c5 $5 {[%cal Rc5b4]} 22. Qd2 (22. Qxb7 Qxb7 23. Bxb7 Rab8 $15) 22... Rab8 $11) 22. Qc3 {[%emt 0:00:08]} Rdc8 {[%emt 0:00:13]} (22... c5 $15) 23. Rfd1 {[%emt 0:00:07]} (23. c5 $11) 23... b5 {[%emt 0:00:05]} (23... c5 $15) 24. c5 $1 $11 {[%emt 0:00:02]} Bb3 {[%emt 0:00:12]} ({Black should play} 24... b4 $11 25. axb4 d5) 25. Rd2 {[%emt 0:00:02]} (25. Re1 $14) 25... Qe7 {[%emt 0:00:31]} 26. cxd6 {[%emt 0:00:12]} Qxd6 {[%emt 0:00:01]} 27. Qc5 {[%emt 0:00:01]} Qe6 {[%emt 0:00:02]} 28. e3 {[%emt 0:00:12]} (28. Bxc6 Rc7 29. d4 exd4 30. Rxd4 Qxe2 $17) 28... Rd8 {[%emt 0:00:09]} 29. d4 {[%emt 0:00:15]} (29. Bxc6 $2 {loses.} Rbc8 30. d4 (30. Qxb5 $2 {perishes.} Rd5 $19) 30... Rd5 31. Bxd5 Rxc5 32. Bxe6 Rxc1+ 33. Kg2 fxe6 $19) 29... e4 {[%emt 0:00:11]} 30. Rc3 {[%emt 0:00:21]} (30. Qxc6 $2 {too greedy.} Rbc8 $19) 30... Bd5 {[%emt 0:00:06]} 31. Qb4 {[%emt 0:00:11]} g5 {[%emt 0:00:02]} 32. Rc5 {[%emt 0:00:01]} h5 {[%emt 0:00:10][%cal Bh6h5,Bh5h4][%mdl 32]} 33. Rdc2 {[%emt 0:00:07]} h4 {[%emt 0:00:03]} 34. Qd2 {[%emt 0:00:07]} Kg7 {[%emt 0:00:03]} 35. Qe2 {[%emt 0:00:19]} Rh8 {[%emt 0:00:06]} 36. h3 {[%emt 0:00:06] [#]} (36. Qe1 $17 {keeps fighting.}) 36... hxg3 $1 $19 {[%emt 0:00:07]} 37. fxg3 {[%emt 0:00:01] [#]} Rh6 {[%emt 0:00:05]} (37... Rxh3 $1 $19 {has better winning chances.} 38. Bxh3 Qxh3) 38. Rc1 {[%emt 0:00:06]} b4 {[%emt 0:00:32]} (38... Rf8 $17 {White must now prevent ...f5.} 39. Qg4 Qxg4 40. hxg4 Rb8) 39. Qg4 $2 {[%emt 0:00:07][%mdl 8192]} (39. axb4 $15 Rxb4 40. R1c2) 39... Qxg4 {[%emt 0:00:03]} 40. hxg4 {[%emt 0:00:01]} bxa3 41. bxa3 {[%emt 0:00:01]} Rb3 {[%emt 0:00:03][%csl LRa3,LRe3]} 42. R5c3 {[%emt 0:00:03]} Rh8 {[%emt 0:00:01] Hoping for ...Rhb8.} 43. Bf1 {[%emt 0:00:03]} Rhb8 {[%emt 0:00:05] Strongly threatening ...Rxc3.} 44. Bc4 $2 {[%emt 0:00:11]} (44. Kf2 Rxc3 45. Rxc3) 44... Bxc4 {[%emt 0:00:02] Black is clearly winning.} 45. Rxc4 {[%emt 0:00:01]} Rxe3 {[%emt 0:00:01]} 46. Rxc6 {[%emt 0:00:02]} Rxg3+ {[%emt 0:00:03]} 47. Kf2 {[%emt 0:00:02]} Rxg4 {[%emt 0:00:02] Weighted Error Value: White=0.39/Black=0.09 (flawless)} 0-1